Workbook

Sheet 1月
A1: 2025年1月各考试点考生通过率统计表
A2: 培训机构 工种 | B2: （待新增考点） | E2: 江门市应急救援和保障中心 | H2: 全市合计
B3: 实考人数 | C3: 合格人数 | D3: 通过率 | E3: 实考人数 | F3: 合格人数 | G3: 通过率 | H3: 实考人数 | I3: 合格人数 | J3: 通过率
A4: 低压电工初训 | B4: 0 | C4: 0 | D4: =C4/B4 ->  | H4: =B4+E4 -> 0 | I4: =C4+F4 -> 0 | J4: =I4/H4 -> 
A5: 高压电工初训 | H5: 0 | I5: 0
A6: 电力电缆初训 | H6: 0 | I6: 0
A7: 熔化焊接与热切割初训 | H7: 0 | I7: 0
A8: 高处安装维护拆除初训 | E8: 123 | F8: 103 | G8: =F8/E8 -> 83.7% | H8: 123 | I8: 103 | J8: 83.7%
A9: 特种作业初训合计 | B9: =SUM(B4:B8) -> 0 | C9: =SUM(C4:C8) -> 0 | D9: =C9/B9 ->  | E9: =SUM(E4:E8) -> 123 | F9: =SUM(F4:F8) -> 103 | G9: =F9/E9 -> 83.7% | H9: =SUM(H4:H8) -> 123 | I9: =SUM(I4:I8) -> 103 | J9: 83.7%
A10: 低压电工复训 | E10: 782 | F10: 673 | G10: =F10/E10 -> 86.1% | H10: =B10+E10 -> 782 | I10: =C10+F10 -> 673 | J10: 86.1%
A11: 高压电工复训 | E11: 165 | F11: 144 | G11: =F11/E11 -> 87.3% | H11: 165 | I11: 144 | J11: 87.3%
A12: 熔化焊接与热切割复训 | E12: 399 | F12: 348 | G12: =F12/E12 -> 87.2% | H12: 399 | I12: 348 | J12: 87.2%
A13: 钎焊复训 | H13: 0 | I13: 0
A14: 高处安装维护拆除复训 | E14: 267 | F14: 234 | G14: =F14/E14 -> 87.6% | H14: 267 | I14: 234 | J14: 87.6%
A15: 登高架设复训 | H15: 0 | I15: 0
A16: 制冷与空调运行操作复训 | H16: 0 | I16: 0
A17: 制冷与空调安装修理复训 | H17: 0 | I17: 0
A18: 矿山安检复训 | H18: 0 | I18: 0
A19: 电力电缆复训 | E19: 6 | F19: 6 | G19: =F19/E19 -> 100.0% | H19: 6 | I19: 6 | J19: 100.0%
A20: 电气试验复训 | E20: 3 | F20: 3 | G20: =F20/E20 -> 100.0% | H20: 3 | I20: 3 | J20: 100.0%
A21: 继电保护复训 | E21: 7 | F21: 5 | G21: =F21/E21 -> 71.4% | H21: 7 | I21: 5 | J21: 71.4%
A22: 危化操作工复训 | H22: 0 | I22: 0
A23: 特种作业复训合计 | B23: =SUM(B10:B22) -> 0 | C23: =SUM(C10:C22) -> 0 | D23: =C23/B23 ->  | E23: =SUM(E10:E22) -> 1629 | F23: =SUM(F10:F22) -> 1413 | G23: =F23/E23 -> 86.7% | H23: =SUM(H10:H22) -> 1629 | I23: =SUM(I10:I22) -> 1413 | J23: 86.7%
A24: 特种作业人员合计 | B24: =B9+B23 -> 0 | C24: =C9+C23 -> 0 | D24: =C24/B24 ->  | E24: =E9+E23 -> 1752 | F24: =F9+F23 -> 1516 | G24: =F24/E24 -> 86.5% | H24: =H9+H23 -> 1752 | I24: =I9+I23 -> 1516 | J24: 86.5%
A25: 烟花爆竹经营负责人初训 | E25: 7 | F25: 7 | G25: =F25/E25 -> 100.0% | H25: =B25+E25 -> 7 | I25: =C25+F25 -> 7 | J25: 100.0%
A26: 危化生产负责人初训 | E26: 1 | F26: 1 | G26: =F26/E26 -> 100.0% | H26: 1 | I26: 1 | J26: 100.0%
A27: 危化经营负责人初训 | E27: 17 | F27: 13 | G27: =F27/E27 -> 76.5% | H27: 17 | I27: 13 | J27: 76.5%
A28: 非煤矿山负责人初训 | H28: 0 | I28: 0
A29: 金属冶炼负责人初训 | E29: 1 | F29: 1 | G29: =F29/E29 -> 100.0% | H29: 1 | I29: 1 | J29: 100.0%
A30: 高危行业负责人初训合计 | B30: =SUM(B25:B29) -> 0 | C30: =SUM(C25:C29) -> 0 | D30: =C30/B30 ->  | E30: =SUM(E25:E29) -> 26 | F30: =SUM(F25:F29) -> 22 | G30: =F30/E30 -> 84.6% | H30: =SUM(H25:H29) -> 26 | I30: =SUM(I25:I29) -> 22 | J30: 84.6%
A31: 烟花爆竹经营负责人复训 | E31: 1 | F31: 1 | G31: =F31/E31 -> 100.0% | H31: =B31+E31 -> 1 | I31: =C31+F31 -> 1 | J31: 100.0%
A32: 危化生产负责人复训 | H32: 0 | I32: 0
A33: 危化经营负责人复训 | E33: 6 | F33: 3 | G33: =F33/E33 -> 50.0% | H33: 6 | I33: 3 | J33: 50.0%
A34: 非煤矿山负责人复训 | H34: 0 | I34: 0
A35: 金属冶炼负责人复训 | H35: 0 | I35: 0
A36: 高危行业负责人复训合计 | B36: =SUM(B31:B35) -> 0 | C36: =SUM(C31:C35) -> 0 | D36: =C36/B36 ->  | E36: =SUM(E31:E35) -> 7 | F36: =SUM(F31:F35) -> 4 | G36: =F36/E36 -> 57.1% | H36: =SUM(H31:H35) -> 7 | I36: =SUM(I31:I35) -> 4 | J36: 57.1%
A37: 高危行业主要负责人合计 | B37: =B30+B36 -> 0 | C37: =C30+C36 -> 0 | E37: =E30+E36 -> 33 | F37: =F30+F36 -> 26 | G37: 78.8% | H37: =H30+H36 -> 33 | I37: =I30+I36 -> 26 | J37: 78.8%
A38: 烟花爆竹经营安管初训 | E38: 6 | F38: 4 | G38: =F38/E38 -> 66.7% | H38: =B38+E38 -> 6 | I38: =C38+F38 -> 4 | J38: 66.7%
A39: 危化生产安管初训 | E39: 6 | F39: 4 | G39: 66.7% | H39: 6 | I39: 4 | J39: 66.7%
A40: 危化经营安管初训 | E40: 24 | F40: 16 | G40: 66.7% | H40: 24 | I40: 16 | J40: 66.7%
A41: 非煤矿山安管初训 | E41: 3 | F41: 3 | G41: 100.0% | H41: 3 | I41: 3 | J41: 100.0%
A42: 金属冶炼安管初训 | E42: 0 | F42: 0 | H42: 0 | I42: 0
A43: 高危行业安管初训合计 | B43: =SUM(B38:B42) -> 0 | C43: =SUM(C38:C42) -> 0 | D43: =C43/B43 ->  | E43: =SUM(E38:E42) -> 39 | F43: =SUM(F38:F42) -> 27 | G43: 69.2% | H43: =SUM(H38:H42) -> 39 | I43: =SUM(I38:I42) -> 27 | J43: 69.2%
A44: 烟花爆竹经营安管复训 | H44: =B44+E44 -> 0 | I44: =C44+F44 -> 0
A45: 危化生产安管复训 | E45: 4 | F45: 3 | G45: =F45/E45 -> 75.0% | H45: 4 | I45: 3 | J45: 75.0%
A46: 危化经营安管复训 | E46: 7 | F46: 6 | G46: =F46/E46 -> 85.7% | H46: 7 | I46: 6 | J46: 85.7%
A47: 非煤矿山安管复训 | H47: 0 | I47: 0
A48: 金属冶炼安管复训 | H48: 0 | I48: 0
A49: 高危行业安管复训合计 | B49: =SUM(B44:B48) -> 0 | C49: =SUM(C44:C48) -> 0 | D49: =C49/B49 ->  | E49: =SUM(E44:E48) -> 11 | F49: =SUM(F44:F48) -> 9 | G49: =F49/E49 -> 81.8% | H49: =SUM(H44:H48) -> 11 | I49: =SUM(I44:I48) -> 9 | J49: 81.8%
A50: 高危行业安管人员合计 | B50: =B43+B49 -> 0 | C50: =C43+C49 -> 0 | E50: =E43+E49 -> 50 | F50: =F43+F49 -> 36 | G50: 72.0% | H50: =H43+H49 -> 50 | I50: =I43+I49 -> 36 | J50: 72.0%
A51: 高危行业负责人安管合计 | B51: =B37+B50 -> 0 | C51: =C37+C50 -> 0 | E51: =E37+E50 -> 83 | F51: =F37+F50 -> 62 | G51: 74.7% | H51: =H37+H50 -> 83 | I51: =I37+I50 -> 62 | J51: 74.7%
A52: 全工种合计 | B52: =B24+B51 -> 0 | C52: =C24+C51 -> 0 | E52: =E24+E51 -> 1835 | F52: =F24+F51 -> 1578 | G52: =F52/E52 -> 86.0% | H52: =E52+B52 -> 1835 | I52: =F52+C52 -> 1578 | J52: 86.0%
A53: 备注： 1.培训机构名称以全国安全生产培训考试信息管理系统记录为准，排序不分先后； 2.实考人数=报考总人数-正考补考均缺考人数-考试违规被取消成绩人数； 3.仅统计已完成考试者，还有补考机会者不统计。

Sheet 2月
A1: 2025年2月各考试点考生通过率统计表
A2: 培训机构 工种 | B2: （待新增考点） | E2: 江门市应急救援和保障中心 | H2: 全市合计
B3: 实考人数 | C3: 合格人数 | D3: 通过率 | E3: 实考人数 | F3: 合格人数 | G3: 通过率 | H3: 实考人数 | I3: 合格人数 | J3: 通过率
A4: 低压电工初训 | B4: 0 | C4: 0 | D4: =C4/B4 ->  | E4: 189 | F4: 114 | G4: =F4/E4 -> 60.3% | H4: =B4+E4 -> 189 | I4: 114 | J4: =I4/H4 -> 60.3%
A5: 高压电工初训 | H5: 0 | I5: 0
A6: 电力电缆初训 | H6: 0 | I6: 0
A7: 熔化焊接与热切割初训 | E7: 45 | F7: 25 | G7: =F7/E7 -> 55.6% | H7: 45 | I7: 25 | J7: 55.6%
A8: 高处安装维护拆除初训 | E8: 115 | F8: 102 | G8: 88.7% | H8: 115 | I8: 102 | J8: 88.7%
A9: 特种作业初训合计 | B9: =SUM(B4:B8) -> 0 | C9: =SUM(C4:C8) -> 0 | D9: =C9/B9 ->  | E9: =SUM(E4:E8) -> 349 | F9: =SUM(F4:F8) -> 241 | G9: 69.1% | H9: =SUM(H4:H8) -> 349 | I9: =SUM(I4:I8) -> 241 | J9: 69.1%
A10: 低压电工复训 | E10: 197 | F10: 177 | G10: 89.8% | H10: =B10+E10 -> 197 | I10: 177 | J10: 89.8%
A11: 高压电工复训 | E11: 30 | F11: 24 | G11: 80.0% | H11: 30 | I11: 24 | J11: 80.0%
A12: 熔化焊接与热切割复训 | E12: 100 | F12: 82 | G12: 82.0% | H12: 100 | I12: 82 | J12: 82.0%
A13: 钎焊复训 | H13: 0 | I13: 0
A14: 高处安装维护拆除复训 | E14: 47 | F14: 42 | G14: =F14/E14 -> 89.4% | H14: 47 | I14: 42 | J14: 89.4%
A15: 登高架设复训 | H15: 0 | I15: 0
A16: 制冷与空调运行操作复训 | H16: 0 | I16: 0
A17: 制冷与空调安装修理复训 | H17: 0 | I17: 0
A18: 矿山安检复训 | H18: 0 | I18: 0
A19: 电力电缆复训 | E19: 3 | F19: 3 | G19: =F19/E19 -> 100.0% | H19: 3 | I19: 3 | J19: 100.0%
A20: 电气试验复训 | H20: 0 | I20: 0
A21: 继电保护复训 | H21: 0 | I21: 0
A22: 危化操作工复训 | H22: 0 | I22: 0
A23: 特种作业复训合计 | B23: =SUM(B10:B22) -> 0 | C23: =SUM(C10:C22) -> 0 | D23: =C23/B23 ->  | E23: =SUM(E10:E22) -> 377 | F23: =SUM(F10:F22) -> 328 | G23: =F23/E23 -> 87.0% | H23: =SUM(H10:H22) -> 377 | I23: =SUM(I10:I22) -> 328 | J23: 87.0%
A24: 特种作业人员合计 | B24: =B9+B23 -> 0 | C24: =C9+C23 -> 0 | D24: =C24/B24 ->  | E24: =E9+E23 -> 726 | F24: =F9+F23 -> 569 | G24: =F24/E24 -> 78.4% | H24: =H9+H23 -> 726 | I24: =I9+I23 -> 569 | J24: 78.4%
A25: 烟花爆竹经营负责人初训 | G25: =F25/E25 ->  | H25: =B25+E25 -> 0 | I25: 0
A26: 危化生产负责人初训 | E26: 1 | F26: 1 | G26: =F26/E26 -> 100.0% | H26: 1 | I26: 1 | J26: 100.0%
A27: 危化经营负责人初训 | E27: 8 | F27: 7 | G27: =F27/E27 -> 87.5% | H27: 8 | I27: 7 | J27: 87.5%
A28: 非煤矿山负责人初训 | H28: 0 | I28: 0
A29: 金属冶炼负责人初训 | G29: =F29/E29 ->  | H29: 0 | I29: 0
A30: 高危行业负责人初训合计 | B30: =SUM(B25:B29) -> 0 | C30: =SUM(C25:C29) -> 0 | D30: =C30/B30 ->  | E30: =SUM(E25:E29) -> 9 | F30: =SUM(F25:F29) -> 8 | G30: =F30/E30 -> 88.9% | H30: =SUM(H25:H29) -> 9 | I30: =SUM(I25:I29) -> 8 | J30: 88.9%
A31: 烟花爆竹经营负责人复训 | G31: =F31/E31 ->  | H31: =B31+E31 -> 0 | I31: 0
A32: 危化生产负责人复训 | H32: 0 | I32: 0
A33: 危化经营负责人复训 | E33: 2 | F33: 1 | G33: =F33/E33 -> 50.0% | H33: 2 | I33: 1 | J33: 50.0%
A34: 非煤矿山负责人复训 | H34: 0 | I34: 0
A35: 金属冶炼负责人复训 | H35: 0 | I35: 0
A36: 高危行业负责人复训合计 | B36: =SUM(B31:B35) -> 0 | C36: =SUM(C31:C35) -> 0 | D36: =C36/B36 ->  | E36: =SUM(E31:E35) -> 2 | F36: =SUM(F31:F35) -> 1 | G36: =F36/E36 -> 50.0% | H36: =SUM(H31:H35) -> 2 | I36: =SUM(I31:I35) -> 1 | J36: 50.0%
A37: 高危行业主要负责人合计 | B37: =B30+B36 -> 0 | C37: =C30+C36 -> 0 | E37: =E30+E36 -> 11 | F37: =F30+F36 -> 9 | G37: 81.8% | H37: =H30+H36 -> 11 | I37: =I30+I36 -> 9 | J37: 81.8%
A38: 烟花爆竹经营安管初训 | H38: =B38+E38 -> 0 | I38: 0
A39: 危化生产安管初训 | H39: 0 | I39: 0
A40: 危化经营安管初训 | E40: 7 | F40: 4 | G40: 57.1% | H40: 7 | I40: 4 | J40: 57.1%
A41: 非煤矿山安管初训 | H41: 0 | I41: 0
A42: 金属冶炼安管初训 | E42: 4 | F42: 2 | G42: 50.0% | H42: 4 | I42: 2 | J42: 50.0%
A43: 高危行业安管初训合计 | B43: =SUM(B38:B42) -> 0 | C43: =SUM(C38:C42) -> 0 | D43: =C43/B43 ->  | E43: =SUM(E38:E42) -> 11 | F43: =SUM(F38:F42) -> 6 | G43: 54.5% | H43: =SUM(H38:H42) -> 11 | I43: =SUM(I38:I42) -> 6 | J43: 54.5%
A44: 烟花爆竹经营安管复训 | H44: =B44+E44 -> 0 | I44: 0
A45: 危化生产安管复训 | G45: =F45/E45 ->  | H45: 0 | I45: 0
A46: 危化经营安管复训 | E46: 4 | F46: 2 | G46: =F46/E46 -> 50.0% | H46: 4 | I46: 2 | J46: 50.0%
A47: 非煤矿山安管复训 | H47: 0 | I47: 0
A48: 金属冶炼安管复训 | H48: 0 | I48: 0
A49: 高危行业安管复训合计 | B49: =SUM(B44:B48) -> 0 | C49: =SUM(C44:C48) -> 0 | D49: =C49/B49 ->  | E49: =SUM(E44:E48) -> 4 | F49: =SUM(F44:F48) -> 2 | G49: =F49/E49 -> 50.0% | H49: =SUM(H44:H48) -> 4 | I49: =SUM(I44:I48) -> 2 | J49: 50.0%
A50: 高危行业安管人员合计 | B50: =B43+B49 -> 0 | C50: =C43+C49 -> 0 | E50: =E43+E49 -> 15 | F50: =F43+F49 -> 8 | G50: 53.3% | H50: =H43+H49 -> 15 | I50: =I43+I49 -> 8 | J50: 53.3%
A51: 高危行业负责人安管合计 | B51: =B37+B50 -> 0 | C51: =C37+C50 -> 0 | E51: =E37+E50 -> 26 | F51: =F37+F50 -> 17 | G51: 65.4% | H51: =H37+H50 -> 26 | I51: =I37+I50 -> 17 | J51: 65.4%
A52: 全工种合计 | B52: =B24+B51 -> 0 | C52: =C24+C51 -> 0 | E52: =E24+E51 -> 752 | F52: =F24+F51 -> 586 | G52: 77.9% | H52: =E52+B52 -> 752 | I52: =F52+C52 -> 586 | J52: 77.9%
A53: 备注： 1.培训机构名称以全国安全生产培训考试信息管理系统记录为准，排序不分先后； 2.实考人数=报考总人数-正考补考均缺考人数-考试违规被取消成绩人数； 3.仅统计已完成考试者，还有补考机会者不统计。

Sheet 3月
A1: 2025年3月各考试点考生通过率统计表
A2: 培训机构 工种 | B2: （待新增考点） | E2: 江门市安全生产资格考试中心 | H2: 全市合计
B3: 实考人数 | C3: 合格人数 | D3: 通过率 | E3: 实考人数 | F3: 合格人数 | G3: 通过率 | H3: 实考人数 | I3: 合格人数 | J3: 通过率
A4: 低压电工初训 | B4: 0 | C4: 0 | D4: =C4/B4 ->  | E4: 313 | F4: 200 | G4: =F4/E4 -> 63.9% | H4: =B4+E4 -> 313 | I4: =C4+F4 -> 200 | J4: =I4/H4 -> 63.9%
A5: 高压电工初训 | E5: 52 | F5: 49 | G5: 94.2% | H5: 52 | I5: 49 | J5: 94.2%
A6: 电力电缆初训 | H6: 0 | I6: 0
A7: 熔化焊接与热切割初训 | E7: 155 | F7: 101 | G7: 65.2% | H7: 155 | I7: 101 | J7: 65.2%
A8: 高处安装维护拆除初训 | E8: 206 | F8: 152 | G8: 73.8% | H8: 206 | I8: 152 | J8: 73.8%
A9: 特种作业初训合计 | B9: =SUM(B4:B8) -> 0 | C9: 0 | D9: =C9/B9 ->  | E9: 726 | F9: 502 | G9: =F9/E9 -> 69.1% | H9: =SUM(H4:H8) -> 726 | I9: =SUM(I4:I8) -> 502 | J9: 69.1%
A10: 低压电工复训 | E10: 356 | F10: 300 | G10: 84.3% | H10: =B10+E10 -> 356 | I10: =C10+F10 -> 300 | J10: 84.3%
A11: 高压电工复训 | E11: 140 | F11: 118 | G11: 84.3% | H11: 140 | I11: 118 | J11: 84.3%
A12: 熔化焊接与热切割复训 | E12: 104 | F12: 80 | G12: 76.9% | H12: 104 | I12: 80 | J12: 76.9%
A13: 钎焊复训 | H13: 0 | I13: 0
A14: 高处安装维护拆除复训 | E14: 76 | F14: 62 | G14: 81.6% | H14: 76 | I14: 62 | J14: 81.6%
A15: 登高架设复训 | H15: 0 | I15: 0
A16: 制冷与空调运行操作复训 | H16: 0 | I16: 0
A17: 制冷与空调安装修理复训 | H17: 0 | I17: 0
A18: 矿山安检复训 | H18: 0 | I18: 0
A19: 电力电缆复训 | E19: 3 | F19: 2 | G19: =F19/E19 -> 66.7% | H19: 3 | I19: 2 | J19: 66.7%
A20: 电气试验复训 | H20: 0 | I20: 0
A21: 继电保护复训 | H21: 0 | I21: 0
A22: 危化操作工复训 | H22: 0 | I22: 0
A23: 特种作业复训合计 | B23: =SUM(B10:B22) -> 0 | C23: 0 | D23: =C23/B23 ->  | E23: 679 | F23: 562 | G23: =F23/E23 -> 82.8% | H23: =SUM(H10:H22) -> 679 | I23: =SUM(I10:I22) -> 562 | J23: 82.8%
A24: 特种作业人员合计 | B24: =B9+B23 -> 0 | C24: 0 | D24: =C24/B24 ->  | E24: 1405 | F24: 1064 | G24: 75.7% | H24: =H9+H23 -> 1405 | I24: =I9+I23 -> 1064 | J24: 75.7%
A25: 烟花爆竹经营负责人初训 | E25: 4 | F25: 1 | G25: 25.0% | H25: =B25+E25 -> 4 | I25: =C25+F25 -> 1 | J25: 25.0%
A26: 危化生产负责人初训 | E26: 3 | F26: 2 | G26: 66.7% | H26: 3 | I26: 2 | J26: 66.7%
A27: 危化经营负责人初训 | E27: 41 | F27: 34 | G27: 82.9% | H27: 41 | I27: 34 | J27: 82.9%
A28: 非煤矿山负责人初训 | H28: 0 | I28: 0
A29: 金属冶炼负责人初训 | H29: 0 | I29: 0
A30: 高危行业负责人初训合计 | B30: =SUM(B25:B29) -> 0 | C30: 0 | D30: =C30/B30 ->  | E30: 48 | F30: 37 | G30: =F30/E30 -> 77.1% | H30: =SUM(H25:H29) -> 48 | I30: =SUM(I25:I29) -> 37 | J30: 77.1%
A31: 烟花爆竹经营负责人复训 | E31: 7 | F31: 3 | G31: 42.9% | H31: =B31+E31 -> 7 | I31: =C31+F31 -> 3 | J31: 42.9%
A32: 危化生产负责人复训 | E32: 4 | F32: 4 | G32: 100.0% | H32: 4 | I32: 4 | J32: 100.0%
A33: 危化经营负责人复训 | E33: 9 | F33: 7 | G33: 77.8% | H33: 9 | I33: 7 | J33: 77.8%
A34: 非煤矿山负责人复训 | H34: 0 | I34: 0
A35: 金属冶炼负责人复训 | E35: 1 | F35: 1 | G35: =F35/E35 -> 100.0% | H35: 1 | I35: 1 | J35: 100.0%
A36: 高危行业负责人复训合计 | B36: =SUM(B31:B35) -> 0 | C36: 0 | D36: =C36/B36 ->  | E36: 21 | F36: 15 | G36: =F36/E36 -> 71.4% | H36: =SUM(H31:H35) -> 21 | I36: =SUM(I31:I35) -> 15 | J36: 71.4%
A37: 高危行业主要负责人合计 | B37: =B30+B36 -> 0 | C37: 0 | D37: =C37/B37 ->  | E37: 69 | F37: 52 | G37: 75.4% | H37: =H30+H36 -> 69 | I37: =I30+I36 -> 52 | J37: 75.4%
A38: 烟花爆竹经营安管初训 | E38: 8 | F38: 4 | G38: 50.0% | H38: =B38+E38 -> 8 | I38: =C38+F38 -> 4 | J38: 50.0%
A39: 危化生产安管初训 | E39: 20 | F39: 16 | G39: 80.0% | H39: 20 | I39: 16 | J39: 80.0%
A40: 危化经营安管初训 | E40: 64 | F40: 47 | G40: 73.4% | H40: 64 | I40: 47 | J40: 73.4%
A41: 非煤矿山安管初训 | H41: 0 | I41: 0
A42: 金属冶炼安管初训 | H42: 0 | I42: 0
A43: 高危行业安管初训合计 | B43: =SUM(B38:B42) -> 0 | C43: 0 | D43: =C43/B43 ->  | E43: 92 | F43: 67 | G43: =F43/E43 -> 72.8% | H43: =SUM(H38:H42) -> 92 | I43: =SUM(I38:I42) -> 67 | J43: 72.8%
A44: 烟花爆竹经营安管复训 | E44: 5 | F44: 5 | G44: 100.0% | H44: =B44+E44 -> 5 | I44: =C44+F44 -> 5 | J44: 100.0%
A45: 危化生产安管复训 | E45: 4 | F45: 4 | G45: 100.0% | H45: 4 | I45: 4 | J45: 100.0%
A46: 危化经营安管复训 | E46: 14 | F46: 9 | G46: 64.3% | H46: 14 | I46: 9 | J46: 64.3%
A47: 非煤矿山安管复训 | H47: 0 | I47: 0
A48: 金属冶炼安管复训 | E48: 1 | F48: 0 | G48: =F48/E48 -> 0.0% | H48: 1 | I48: 0 | J48: 0.0%
A49: 高危行业安管复训合计 | B49: =SUM(B44:B48) -> 0 | C49: 0 | D49: =C49/B49 ->  | E49: 24 | F49: 18 | G49: =F49/E49 -> 75.0% | H49: =SUM(H44:H48) -> 24 | I49: =SUM(I44:I48) -> 18 | J49: 75.0%
A50: 高危行业安管人员合计 | B50: =B43+B49 -> 0 | C50: 0 | E50: 116 | F50: 85 | G50: 73.3% | H50: =H43+H49 -> 116 | I50: =I43+I49 -> 85 | J50: 73.3%
A51: 高危行业负责人安管合计 | B51: =B37+B50 -> 0 | C51: 0 | E51: 185 | F51: 137 | G51: 74.1% | H51: =H37+H50 -> 185 | I51: =I37+I50 -> 137 | J51: 74.1%
A52: 全工种合计 | B52: =B24+B51 -> 0 | C52: 0 | E52: 1590 | F52: 1201 | G52: 75.5% | H52: =E52+B52 -> 1590 | I52: =F52+C52 -> 1201 | J52: 75.5%
A53: 备注： 1.培训机构名称以全国安全生产培训考试信息管理系统记录为准，排序不分先后； 2.实考人数=报考总人数-正考补考均缺考人数-考试违规被取消成绩人数； 3.仅统计已完成考试者，还有补考机会者不统计。

Sheet 4月
A1: 2025年4月各考试点考生通过率统计表
A2: 培训机构 工种 | B2: （待新增考点） | E2: 江门市安全生产资格考试中心 | H2: 全市合计
B3: 实考人数 | C3: 合格人数 | D3: 通过率 | E3: 实考人数 | F3: 合格人数 | G3: 通过率 | H3: 实考人数 | I3: 合格人数 | J3: 通过率
A4: 低压电工初训 | B4: 0 | C4: 0 | D4: =C4/B4 ->  | E4: 536 | F4: 369 | G4: =F4/E4 -> 68.8% | H4: =B4+E4 -> 536 | I4: =C4+F4 -> 369 | J4: =I4/H4 -> 68.8%
A5: 高压电工初训 | E5: 57 | F5: 44 | G5: 77.2% | H5: 57 | I5: 44 | J5: 77.2%
A6: 电力电缆初训 | H6: 0 | I6: 0
A7: 熔化焊接与热切割初训 | E7: 193 | F7: 141 | G7: 73.1% | H7: 193 | I7: 141 | J7: 73.1%
A8: 高处安装维护拆除初训 | E8: 275 | F8: 216 | G8: 78.5% | H8: 275 | I8: 216 | J8: 78.5%
A9: 特种作业初训合计 | B9: =SUM(B4:B8) -> 0 | C9: 0 | D9: =C9/B9 ->  | E9: 1061 | F9: 770 | G9: 72.6% | H9: =SUM(H4:H8) -> 1061 | I9: =SUM(I4:I8) -> 770 | J9: 72.6%
A10: 低压电工复训 | E10: 502 | F10: 460 | G10: 91.6% | H10: =B10+E10 -> 502 | I10: =C10+F10 -> 460 | J10: 91.6%
A11: 高压电工复训 | E11: 210 | F11: 180 | G11: 85.7% | H11: 210 | I11: 180 | J11: 85.7%
A12: 熔化焊接与热切割复训 | E12: 213 | F12: 185 | G12: 86.9% | H12: 213 | I12: 185 | J12: 86.9%
A13: 钎焊复训 | H13: 0 | I13: 0
A14: 高处安装维护拆除复训 | E14: 439 | F14: 411 | G14: =F14/E14 -> 93.6% | H14: 439 | I14: 411 | J14: 93.6%
A15: 登高架设复训 | H15: 0 | I15: 0
A16: 制冷与空调运行操作复训 | H16: 0 | I16: 0
A17: 制冷与空调安装修理复训 | H17: 0 | I17: 0
A18: 矿山安检复训 | H18: 0 | I18: 0
A19: 电力电缆复训 | E19: 2 | F19: 2 | G19: =F19/E19 -> 100.0% | H19: 2 | I19: 2 | J19: 100.0%
A20: 电气试验复训 | H20: 0 | I20: 0
A21: 继电保护复训 | H21: 0 | I21: 0
A22: 危化操作工复训 | H22: 0 | I22: 0
A23: 特种作业复训合计 | B23: =SUM(B10:B22) -> 0 | C23: 0 | D23: =C23/B23 ->  | E23: 1366 | F23: 1238 | G23: 90.6% | H23: =SUM(H10:H22) -> 1366 | I23: =SUM(I10:I22) -> 1238 | J23: 90.6%
A24: 特种作业人员合计 | B24: =B9+B23 -> 0 | C24: 0 | D24: =C24/B24 ->  | E24: 2427 | F24: 2008 | G24: 82.7% | H24: =H9+H23 -> 2427 | I24: =I9+I23 -> 2008 | J24: 82.7%
A25: 烟花爆竹经营负责人初训 | E25: 14 | F25: 11 | G25: 78.6% | H25: =B25+E25 -> 14 | I25: =C25+F25 -> 11 | J25: 78.6%
A26: 危化生产负责人初训 | E26: 5 | F26: 5 | G26: 100.0% | H26: 5 | I26: 5 | J26: 100.0%
A27: 危化经营负责人初训 | E27: 14 | F27: 13 | G27: 92.9% | H27: 14 | I27: 13 | J27: 92.9%
A28: 非煤矿山负责人初训 | E28: 3 | F28: 3 | G28: 100.0% | H28: 3 | I28: 3 | J28: 100.0%
A29: 金属冶炼负责人初训 | E29: 2 | F29: 2 | G29: 100.0% | H29: 2 | I29: 2 | J29: 100.0%
A30: 高危行业负责人初训合计 | B30: =SUM(B25:B29) -> 0 | C30: 0 | D30: =C30/B30 ->  | E30: =SUM(E25:E29) -> 38 | F30: 34 | G30: =F30/E30 -> 89.5% | H30: =SUM(H25:H29) -> 38 | I30: =SUM(I25:I29) -> 34 | J30: 89.5%
A31: 烟花爆竹经营负责人复训 | H31: =B31+E31 -> 0 | I31: =C31+F31 -> 0
A32: 危化生产负责人复训 | H32: 0 | I32: 0
A33: 危化经营负责人复训 | E33: 10 | F33: 10 | G33: 100.0% | H33: 10 | I33: 10 | J33: 100.0%
A34: 非煤矿山负责人复训 | E34: 1 | F34: 1 | G34: 100.0% | H34: 1 | I34: 1 | J34: 100.0%
A35: 金属冶炼负责人复训 | G35: =F35/E35 ->  | H35: 0 | I35: 0
A36: 高危行业负责人复训合计 | B36: =SUM(B31:B35) -> 0 | C36: 0 | D36: =C36/B36 ->  | E36: 11 | F36: 11 | G36: 100.0% | H36: =SUM(H31:H35) -> 11 | I36: =SUM(I31:I35) -> 11 | J36: 100.0%
A37: 高危行业主要负责人合计 | B37: =B30+B36 -> 0 | C37: 0 | D37: =C37/B37 ->  | E37: =E30+E36 -> 49 | F37: 45 | G37: 91.8% | H37: =H30+H36 -> 49 | I37: =I30+I36 -> 45 | J37: 91.8%
A38: 烟花爆竹经营安管初训 | E38: 13 | F38: 9 | G38: 69.2% | H38: =B38+E38 -> 13 | I38: =C38+F38 -> 9 | J38: 69.2%
A39: 危化生产安管初训 | E39: 6 | F39: 5 | G39: 83.3% | H39: 6 | I39: 5 | J39: 83.3%
A40: 危化经营安管初训 | E40: 52 | F40: 31 | G40: 59.6% | H40: 52 | I40: 31 | J40: 59.6%
A41: 非煤矿山安管初训 | E41: 14 | F41: 13 | G41: 92.9% | H41: 14 | I41: 13 | J41: 92.9%
A42: 金属冶炼安管初训 | E42: 3 | F42: 2 | G42: 66.7% | H42: 3 | I42: 2 | J42: 66.7%
A43: 高危行业安管初训合计 | B43: =SUM(B38:B42) -> 0 | C43: 0 | D43: =C43/B43 ->  | E43: 88 | F43: 60 | G43: =F43/E43 -> 68.2% | H43: =SUM(H38:H42) -> 88 | I43: =SUM(I38:I42) -> 60 | J43: 68.2%
A44: 烟花爆竹经营安管复训 | H44: =B44+E44 -> 0 | I44: =C44+F44 -> 0
A45: 危化生产安管复训 | E45: 9 | F45: 7 | G45: 77.8% | H45: 9 | I45: 7 | J45: 77.8%
A46: 危化经营安管复训 | E46: 20 | F46: 14 | G46: 70.0% | H46: 20 | I46: 14 | J46: 70.0%
A47: 非煤矿山安管复训 | E47: 5 | F47: 5 | G47: 100.0% | H47: 5 | I47: 5 | J47: 100.0%
A48: 金属冶炼安管复训 | G48: =F48/E48 ->  | H48: 0 | I48: 0
A49: 高危行业安管复训合计 | B49: =SUM(B44:B48) -> 0 | C49: 0 | D49: =C49/B49 ->  | E49: 34 | F49: 26 | G49: 76.5% | H49: =SUM(H44:H48) -> 34 | I49: =SUM(I44:I48) -> 26 | J49: 76.5%
A50: 高危行业安管人员合计 | B50: =B43+B49 -> 0 | C50: 0 | E50: 122 | F50: 86 | G50: 70.5% | H50: =H43+H49 -> 122 | I50: =I43+I49 -> 86 | J50: 70.5%
A51: 高危行业负责人安管合计 | B51: =B37+B50 -> 0 | C51: 0 | E51: =E37+E50 -> 171 | F51: 131 | G51: 76.6% | H51: =H37+H50 -> 171 | I51: =I37+I50 -> 131 | J51: 76.6%
A52: 全工种合计 | B52: =B24+B51 -> 0 | C52: 0 | E52: =E24+E51 -> 2598 | F52: 2139 | G52: 82.3% | H52: =E52+B52 -> 2598 | I52: =F52+C52 -> 2139 | J52: 82.3%
A53: 备注： 1.培训机构名称以全国安全生产培训考试信息管理系统记录为准，排序不分先后； 2.实考人数=报考总人数-正考补考均缺考人数-考试违规被取消成绩人数； 3.仅统计已完成考试者，还有补考机会者不统计。

Sheet 5月
A1: 2025年5月各考试点考生通过率统计表
A2: 培训机构 工种 | B2: （待新增考点） | E2: 江门市安全生产资格考试中心 | H2: 全市合计
B3: 实考人数 | C3: 合格人数 | D3: 通过率 | E3: 实考人数 | F3: 合格人数 | G3: 通过率 | H3: 实考人数 | I3: 合格人数 | J3: 通过率
A4: 低压电工初训 | B4: 0 | C4: 0 | D4: =C4/B4 ->  | E4: 487 | F4: 363 | G4: =F4/E4 -> 74.5% | H4: =B4+E4 -> 487 | I4: =C4+F4 -> 363 | J4: =I4/H4 -> 74.5%
A5: 高压电工初训 | H5: 0 | I5: 0
A6: 电力电缆初训 | H6: 0 | I6: 0
A7: 熔化焊接与热切割初训 | E7: 201 | F7: 136 | G7: 67.7% | H7: 201 | I7: 136 | J7: 67.7%
A8: 高处安装维护拆除初训 | E8: 355 | F8: 289 | G8: 81.4% | H8: 355 | I8: 289 | J8: 81.4%
A9: 特种作业初训合计 | B9: =SUM(B4:B8) -> 0 | C9: 0 | D9: =C9/B9 ->  | E9: 1043 | F9: 788 | G9: 75.6% | H9: =SUM(H4:H8) -> 1043 | I9: =SUM(I4:I8) -> 788 | J9: 75.6%
A10: 低压电工复训 | E10: 660 | F10: 598 | G10: 90.6% | H10: =B10+E10 -> 660 | I10: =C10+F10 -> 598 | J10: 90.6%
A11: 高压电工复训 | E11: 160 | F11: 152 | G11: 95.0% | H11: 160 | I11: 152 | J11: 95.0%
A12: 熔化焊接与热切割复训 | E12: 259 | F12: 234 | G12: 90.3% | H12: 259 | I12: 234 | J12: 90.3%
A13: 钎焊复训 | H13: 0 | I13: 0
A14: 高处安装维护拆除复训 | E14: 390 | F14: 363 | G14: =F14/E14 -> 93.1% | H14: 390 | I14: 363 | J14: 93.1%
A15: 登高架设复训 | H15: 0 | I15: 0
A16: 制冷与空调运行操作复训 | H16: 0 | I16: 0
A17: 制冷与空调安装修理复训 | H17: 0 | I17: 0
A18: 矿山安检复训 | H18: 0 | I18: 0
A19: 电力电缆复训 | E19: 5 | F19: 4 | G19: =F19/E19 -> 80.0% | H19: 5 | I19: 4 | J19: 80.0%
A20: 电气试验复训 | H20: 0 | I20: 0
A21: 继电保护复训 | H21: 0 | I21: 0
A22: 危化操作工复训 | H22: 0 | I22: 0
A23: 特种作业复训合计 | B23: =SUM(B10:B22) -> 0 | C23: 0 | D23: =C23/B23 ->  | E23: 1474 | F23: 1351 | G23: 91.7% | H23: =SUM(H10:H22) -> 1474 | I23: =SUM(I10:I22) -> 1351 | J23: 91.7%
A24: 特种作业人员合计 | B24: =B9+B23 -> 0 | C24: 0 | D24: =C24/B24 ->  | E24: 2517 | F24: 2139 | G24: 85.0% | H24: =H9+H23 -> 2517 | I24: =I9+I23 -> 2139 | J24: 85.0%
A25: 烟花爆竹经营负责人初训 | E25: 6 | F25: 4 | G25: 66.7% | H25: =B25+E25 -> 6 | I25: =C25+F25 -> 4 | J25: 66.7%
A26: 危化生产负责人初训 | E26: 3 | F26: 3 | G26: 100.0% | H26: 3 | I26: 3 | J26: 100.0%
A27: 危化经营负责人初训 | E27: 29 | F27: 21 | G27: 72.4% | H27: 29 | I27: 21 | J27: 72.4%
A28: 非煤矿山负责人初训 | H28: 0 | I28: 0
A29: 金属冶炼负责人初训 | H29: 0 | I29: 0
A30: 高危行业负责人初训合计 | B30: =SUM(B25:B29) -> 0 | C30: 0 | D30: =C30/B30 ->  | E30: 38 | F30: 28 | G30: 73.7% | H30: =SUM(H25:H29) -> 38 | I30: =SUM(I25:I29) -> 28 | J30: 73.7%
A31: 烟花爆竹经营负责人复训 | E31: 2 | F31: 1 | G31: 50.0% | H31: =B31+E31 -> 2 | I31: =C31+F31 -> 1 | J31: 50.0%
A32: 危化生产负责人复训 | H32: 0 | I32: 0
A33: 危化经营负责人复训 | E33: 8 | F33: 6 | G33: 75.0% | H33: 8 | I33: 6 | J33: 75.0%
A34: 非煤矿山负责人复训 | E34: 3 | F34: 3 | G34: 100.0% | H34: 3 | I34: 3 | J34: 100.0%
A35: 金属冶炼负责人复训 | E35: 2 | F35: 1 | G35: 50.0% | H35: 2 | I35: 1 | J35: 50.0%
A36: 高危行业负责人复训合计 | B36: =SUM(B31:B35) -> 0 | C36: 0 | D36: =C36/B36 ->  | E36: 15 | F36: 11 | G36: 73.3% | H36: =SUM(H31:H35) -> 15 | I36: =SUM(I31:I35) -> 11 | J36: 73.3%
A37: 高危行业主要负责人合计 | B37: =B30+B36 -> 0 | C37: 0 | D37: =C37/B37 ->  | E37: 53 | F37: 39 | G37: 73.6% | H37: =H30+H36 -> 53 | I37: =I30+I36 -> 39 | J37: 73.6%
A38: 烟花爆竹经营安管初训 | E38: 4 | F38: 3 | G38: 75.0% | H38: =B38+E38 -> 4 | I38: =C38+F38 -> 3 | J38: 75.0%
A39: 危化生产安管初训 | E39: 10 | F39: 7 | G39: 70.0% | H39: 10 | I39: 7 | J39: 70.0%
A40: 危化经营安管初训 | E40: 48 | F40: 33 | G40: 68.8% | H40: 48 | I40: 33 | J40: 68.8%
A41: 非煤矿山安管初训 | E41: 3 | F41: 3 | G41: 100.0% | H41: 3 | I41: 3 | J41: 100.0%
A42: 金属冶炼安管初训 | H42: 0 | I42: 0
A43: 高危行业安管初训合计 | B43: =SUM(B38:B42) -> 0 | C43: 0 | D43: =C43/B43 ->  | E43: 65 | F43: 46 | G43: 70.8% | H43: =SUM(H38:H42) -> 65 | I43: =SUM(I38:I42) -> 46 | J43: 70.8%
A44: 烟花爆竹经营安管复训 | E44: 1 | F44: 1 | G44: 100.0% | H44: =B44+E44 -> 1 | I44: =C44+F44 -> 1 | J44: 100.0%
A45: 危化生产安管复训 | E45: 2 | F45: 0 | G45: 0.0% | H45: 2 | I45: 0 | J45: 0.0%
A46: 危化经营安管复训 | E46: 15 | F46: 10 | G46: 66.7% | H46: 15 | I46: 10 | J46: 66.7%
A47: 非煤矿山安管复训 | E47: 1 | F47: 1 | G47: 100.0% | H47: 1 | I47: 1 | J47: 100.0%
A48: 金属冶炼安管复训 | E48: 2 | F48: 1 | G48: 50.0% | H48: 2 | I48: 1 | J48: 50.0%
A49: 高危行业安管复训合计 | B49: =SUM(B44:B48) -> 0 | C49: 0 | D49: =C49/B49 ->  | E49: 21 | F49: 13 | G49: 61.9% | H49: =SUM(H44:H48) -> 21 | I49: =SUM(I44:I48) -> 13 | J49: 61.9%
A50: 高危行业安管人员合计 | B50: =B43+B49 -> 0 | C50: 0 | E50: 86 | F50: 59 | G50: 68.6% | H50: =H43+H49 -> 86 | I50: =I43+I49 -> 59 | J50: 68.6%
A51: 高危行业负责人安管合计 | B51: =B37+B50 -> 0 | C51: 0 | E51: 139 | F51: 98 | G51: 70.5% | H51: =H37+H50 -> 139 | I51: =I37+I50 -> 98 | J51: 70.5%
A52: 全工种合计 | B52: =B24+B51 -> 0 | C52: 0 | E52: 2656 | F52: 2237 | G52: 84.2% | H52: =E52+B52 -> 2656 | I52: =F52+C52 -> 2237 | J52: 84.2%
A53: 备注： 1.培训机构名称以全国安全生产培训考试信息管理系统记录为准，排序不分先后； 2.实考人数=报考总人数-正考补考均缺考人数-考试违规被取消成绩人数； 3.仅统计已完成考试者，还有补考机会者不统计。

Sheet 6月
A1: 2025年6月各考试点考生通过率统计表
A2: 培训机构 工种 | B2: （待新增考点） | E2: 江门市安全生产资格考试中心 | H2: 全市合计
B3: 实考人数 | C3: 合格人数 | D3: 通过率 | E3: 实考人数 | F3: 合格人数 | G3: 通过率 | H3: 实考人数 | I3: 合格人数 | J3: 通过率
A4: 低压电工初训 | B4: 0 | C4: 0 | D4: =C4/B4 ->  | E4: 640 | F4: 494 | G4: =F4/E4 -> 77.2% | H4: =B4+E4 -> 640 | I4: =C4+F4 -> 494 | J4: =I4/H4 -> 77.2%
A5: 高压电工初训 | H5: 0 | I5: 0
A6: 电力电缆初训 | E6: 27 | F6: 14 | G6: 51.9% | H6: 27 | I6: 14 | J6: 51.9%
A7: 熔化焊接与热切割初训 | E7: 238 | F7: 147 | G7: 61.8% | H7: 238 | I7: 147 | J7: 61.8%
A8: 高处安装维护拆除初训 | E8: 410 | F8: 351 | G8: 85.6% | H8: 410 | I8: 351 | J8: 85.6%
A9: 特种作业初训合计 | B9: =SUM(B4:B8) -> 0 | C9: 0 | D9: =C9/B9 ->  | E9: 1315 | F9: 1006 | G9: 76.5% | H9: =SUM(H4:H8) -> 1315 | I9: =SUM(I4:I8) -> 1006 | J9: 76.5% | M9: 1
A10: 低压电工复训 | E10: 612 | F10: 547 | G10: 89.4% | H10: =B10+E10 -> 612 | I10: =C10+F10 -> 547 | J10: 89.4%
A11: 高压电工复训 | E11: 228 | F11: 216 | G11: 94.7% | H11: 228 | I11: 216 | J11: 94.7%
A12: 熔化焊接与热切割复训 | E12: 278 | F12: 249 | G12: 89.6% | H12: 278 | I12: 249 | J12: 89.6%
A13: 钎焊复训 | H13: 0 | I13: 0
A14: 高处安装维护拆除复训 | E14: 146 | F14: 131 | G14: =F14/E14 -> 89.7% | H14: 146 | I14: 131 | J14: 89.7%
A15: 登高架设复训 | H15: 0 | I15: 0
A16: 制冷与空调运行操作复训 | H16: 0 | I16: 0
A17: 制冷与空调安装修理复训 | H17: 0 | I17: 0
A18: 矿山安检复训 | H18: 0 | I18: 0
A19: 电力电缆复训 | E19: 3 | F19: 2 | G19: =F19/E19 -> 66.7% | H19: 3 | I19: 2 | J19: 66.7%
A20: 电气试验复训 | H20: 0 | I20: 0
A21: 继电保护复训 | H21: 0 | I21: 0
A22: 危化操作工复训 | H22: 0 | I22: 0
A23: 特种作业复训合计 | B23: =SUM(B10:B22) -> 0 | C23: 0 | D23: =C23/B23 ->  | E23: 1267 | F23: 1145 | G23: 90.4% | H23: =SUM(H10:H22) -> 1267 | I23: =SUM(I10:I22) -> 1145 | J23: 90.4%
A24: 特种作业人员合计 | B24: =B9+B23 -> 0 | C24: 0 | D24: =C24/B24 ->  | E24: 2582 | F24: 2151 | G24: 83.3% | H24: =H9+H23 -> 2582 | I24: =I9+I23 -> 2151 | J24: 83.3%
A25: 烟花爆竹经营负责人初训 | E25: 4 | F25: 2 | G25: 50.0% | H25: =B25+E25 -> 4 | I25: =C25+F25 -> 2 | J25: 50.0%
A26: 危化生产负责人初训 | E26: 1 | F26: 1 | G26: 100.0% | H26: 1 | I26: 1 | J26: 100.0%
A27: 危化经营负责人初训 | E27: 12 | F27: 8 | G27: 66.7% | H27: 12 | I27: 8 | J27: 66.7%
A28: 非煤矿山负责人初训 | E28: 3 | F28: 3 | G28: 100.0% | H28: 3 | I28: 3 | J28: 100.0%
A29: 金属冶炼负责人初训 | E29: 1 | F29: 0 | G29: 0.0% | H29: 1 | I29: 0 | J29: 0.0%
A30: 高危行业负责人初训合计 | B30: =SUM(B25:B29) -> 0 | C30: 0 | D30: =C30/B30 ->  | E30: 21 | F30: 14 | G30: 66.7% | H30: =SUM(H25:H29) -> 21 | I30: =SUM(I25:I29) -> 14 | J30: 66.7%
A31: 烟花爆竹经营负责人复训 | E31: 15 | F31: 12 | G31: 80.0% | H31: =B31+E31 -> 15 | I31: =C31+F31 -> 12 | J31: 80.0%
A32: 危化生产负责人复训 | E32: 1 | F32: 1 | G32: 100.0% | H32: 1 | I32: 1 | J32: 100.0%
A33: 危化经营负责人复训 | E33: 8 | F33: 5 | G33: 62.5% | H33: 8 | I33: 5 | J33: 62.5%
A34: 非煤矿山负责人复训 | E34: 2 | F34: 2 | G34: 100.0% | H34: 2 | I34: 2 | J34: 100.0%
A35: 金属冶炼负责人复训 | E35: 1 | F35: 0 | G35: 0.0% | H35: 1 | I35: 0 | J35: 0.0%
A36: 高危行业负责人复训合计 | B36: =SUM(B31:B35) -> 0 | C36: =SUM(C31:C35) -> 0 | D36: =C36/B36 ->  | E36: =SUM(E31:E35) -> 27 | F36: =SUM(F31:F35) -> 20 | G36: 74.1% | H36: =SUM(H31:H35) -> 27 | I36: =SUM(I31:I35) -> 20 | J36: 74.1%
A37: 高危行业主要负责人合计 | B37: =B30+B36 -> 0 | C37: 0 | D37: =C37/B37 ->  | E37: 48 | F37: 34 | G37: 70.8% | H37: =H30+H36 -> 48 | I37: =I30+I36 -> 34 | J37: 70.8%
A38: 烟花爆竹经营安管初训 | E38: 2 | F38: 2 | G38: 100.0% | H38: =B38+E38 -> 2 | I38: =C38+F38 -> 2 | J38: 100.0%
A39: 危化生产安管初训 | E39: 7 | F39: 7 | G39: 100.0% | H39: 7 | I39: 7 | J39: 100.0%
A40: 危化经营安管初训 | E40: 40 | F40: 20 | G40: 50.0% | H40: 40 | I40: 20 | J40: 50.0%
A41: 非煤矿山安管初训 | E41: 3 | F41: 3 | G41: 100.0% | H41: 3 | I41: 3 | J41: 100.0%
A42: 金属冶炼安管初训 | E42: 2 | F42: 0 | G42: 0.0% | H42: 2 | I42: 0 | J42: 0.0%
A43: 高危行业安管初训合计 | B43: =SUM(B38:B42) -> 0 | C43: 0 | D43: =C43/B43 ->  | E43: 54 | F43: 32 | G43: 59.3% | H43: =SUM(H38:H42) -> 54 | I43: =SUM(I38:I42) -> 32 | J43: 59.3%
A44: 烟花爆竹经营安管复训 | E44: 18 | F44: 16 | G44: 88.9% | H44: =B44+E44 -> 18 | I44: =C44+F44 -> 16 | J44: 88.9%
A45: 危化生产安管复训 | E45: 3 | F45: 2 | G45: 66.7% | H45: 3 | I45: 2 | J45: 66.7%
A46: 危化经营安管复训 | E46: 33 | F46: 28 | G46: 84.8% | H46: 33 | I46: 28 | J46: 84.8%
A47: 非煤矿山安管复训 | E47: 3 | F47: 3 | G47: 100.0% | H47: 3 | I47: 3 | J47: 100.0%
A48: 金属冶炼安管复训 | E48: 5 | F48: 3 | G48: 60.0% | H48: 5 | I48: 3 | J48: 60.0%
A49: 高危行业安管复训合计 | B49: =SUM(B44:B48) -> 0 | C49: 0 | D49: =C49/B49 ->  | E49: 62 | F49: 52 | G49: 83.9% | H49: =SUM(H44:H48) -> 62 | I49: =SUM(I44:I48) -> 52 | J49: 83.9%
A50: 高危行业安管人员合计 | B50: =B43+B49 -> 0 | C50: 0 | E50: 116 | F50: 84 | G50: 72.4% | H50: =H43+H49 -> 116 | I50: =I43+I49 -> 84 | J50: 72.4%
A51: 高危行业负责人安管合计 | B51: =B37+B50 -> 0 | C51: 0 | E51: 164 | F51: 118 | G51: 72.0% | H51: =H37+H50 -> 164 | I51: =I37+I50 -> 118 | J51: 72.0%
A52: 全工种合计 | B52: =B24+B51 -> 0 | C52: 0 | E52: 2746 | F52: 2269 | G52: 82.6% | H52: =E52+B52 -> 2746 | I52: =F52+C52 -> 2269 | J52: 82.6%
A53: 备注： 1.培训机构名称以全国安全生产培训考试信息管理系统记录为准，排序不分先后； 2.实考人数=报考总人数-正考补考均缺考人数-考试违规被取消成绩人数； 3.仅统计已完成考试者，还有补考机会者不统计。

Sheet 半年合计
A1: 2025年上半年各考试点考生通过率统计表
A2: 培训机构 工种 | B2: （待新增考点） | E2: 江门市安全生产资格考试中心 | H2: 全市合计
B3: 实考人数 | C3: 合格人数 | D3: 通过率 | E3: 实考人数 | F3: 合格人数 | G3: 通过率 | H3: 实考人数 | I3: 合格人数 | J3: 通过率
A4: 低压电工初训 | B4: 0 | C4: 0 | D4: =C4/B4 ->  | E4: ='6月'!E4+'5月'!E4+'4月'!E4+'3月'!E4+'2月'!E4+'1月'!E4 -> 2165 | F4: ='6月'!F4+'5月'!F4+'4月'!F4+'3月'!F4+'2月'!F4+'1月'!F4 -> 1540 | G4: =F4/E4 -> 71.1% | H4: =B4+E4 -> 2165 | I4: =C4+F4 -> 1540 | J4: =I4/H4 -> 71.1%
A5: 高压电工初训 | E5: ='6月'!E5+'5月'!E5+'4月'!E5+'3月'!E5+'2月'!E5+'1月'!E5 -> 109 | F5: ='6月'!F5+'5月'!F5+'4月'!F5+'3月'!F5+'2月'!F5+'1月'!F5 -> 93 | G5: 85.3% | H5: 109 | I5: 93 | J5: 85.3%
A6: 电力电缆初训 | E6: ='6月'!E6+'5月'!E6+'4月'!E6+'3月'!E6+'2月'!E6+'1月'!E6 -> 27 | F6: ='6月'!F6+'5月'!F6+'4月'!F6+'3月'!F6+'2月'!F6+'1月'!F6 -> 14 | G6: 51.9% | H6: 27 | I6: 14 | J6: 51.9%
A7: 熔化焊接与热切割初训 | E7: ='6月'!E7+'5月'!E7+'4月'!E7+'3月'!E7+'2月'!E7+'1月'!E7 -> 832 | F7: ='6月'!F7+'5月'!F7+'4月'!F7+'3月'!F7+'2月'!F7+'1月'!F7 -> 550 | G7: 66.1% | H7: 832 | I7: 550 | J7: 66.1%
A8: 高处安装维护拆除初训 | E8: ='6月'!E8+'5月'!E8+'4月'!E8+'3月'!E8+'2月'!E8+'1月'!E8 -> 1484 | F8: ='6月'!F8+'5月'!F8+'4月'!F8+'3月'!F8+'2月'!F8+'1月'!F8 -> 1213 | G8: 81.7% | H8: 1484 | I8: 1213 | J8: 81.7%
A9: 特种作业初训合计 | B9: =SUM(B4:B8) -> 0 | C9: 0 | D9: =C9/B9 ->  | E9: 4617 | F9: 3410 | G9: 73.9% | H9: =SUM(H4:H8) -> 4617 | I9: =SUM(I4:I8) -> 3410 | J9: 73.9%
A10: 低压电工复训 | E10: ='6月'!E10+'5月'!E10+'4月'!E10+'3月'!E10+'2月'!E10+'1月'!E10 -> 3109 | F10: ='6月'!F10+'5月'!F10+'4月'!F10+'3月'!F10+'2月'!F10+'1月'!F10 -> 2755 | G10: 88.6% | H10: =B10+E10 -> 3109 | I10: =C10+F10 -> 2755 | J10: 88.6%
A11: 高压电工复训 | E11: ='6月'!E11+'5月'!E11+'4月'!E11+'3月'!E11+'2月'!E11+'1月'!E11 -> 933 | F11: ='6月'!F11+'5月'!F11+'4月'!F11+'3月'!F11+'2月'!F11+'1月'!F11 -> 834 | G11: 89.4% | H11: 933 | I11: 834 | J11: 89.4%
A12: 熔化焊接与热切割复训 | E12: ='6月'!E12+'5月'!E12+'4月'!E12+'3月'!E12+'2月'!E12+'1月'!E12 -> 1353 | F12: ='6月'!F12+'5月'!F12+'4月'!F12+'3月'!F12+'2月'!F12+'1月'!F12 -> 1178 | G12: 87.1% | H12: 1353 | I12: 1178 | J12: 87.1%
A13: 钎焊复训 | H13: 0 | I13: 0
A14: 高处安装维护拆除复训 | E14: ='6月'!E14+'5月'!E14+'4月'!E14+'3月'!E14+'2月'!E14+'1月'!E14 -> 1365 | F14: ='6月'!F14+'5月'!F14+'4月'!F14+'3月'!F14+'2月'!F14+'1月'!F14 -> 1243 | G14: =F14/E14 -> 91.1% | H14: 1365 | I14: 1243 | J14: 91.1%
A15: 登高架设复训 | H15: 0 | I15: 0
A16: 制冷与空调运行操作复训 | H16: 0 | I16: 0
A17: 制冷与空调安装修理复训 | H17: 0 | I17: 0
A18: 矿山安检复训 | H18: 0 | I18: 0
A19: 电力电缆复训 | E19: ='6月'!E19+'5月'!E19+'4月'!E19+'3月'!E19+'2月'!E19+'1月'!E19 -> 22 | F19: ='6月'!F19+'5月'!F19+'4月'!F19+'3月'!F19+'2月'!F19+'1月'!F19 -> 19 | G19: =F19/E19 -> 86.4% | H19: 22 | I19: 19 | J19: 86.4%
A20: 电气试验复训 | E20: ='6月'!E20+'5月'!E20+'4月'!E20+'3月'!E20+'2月'!E20+'1月'!E20 -> 3 | F20: ='6月'!F20+'5月'!F20+'4月'!F20+'3月'!F20+'2月'!F20+'1月'!F20 -> 3 | G20: 100.0% | H20: 3 | I20: 3 | J20: 100.0%
A21: 继电保护复训 | E21: ='6月'!E21+'5月'!E21+'4月'!E21+'3月'!E21+'2月'!E21+'1月'!E21 -> 7 | F21: ='6月'!F21+'5月'!F21+'4月'!F21+'3月'!F21+'2月'!F21+'1月'!F21 -> 5 | G21: 71.4% | H21: 7 | I21: 5 | J21: 71.4%
A22: 危化操作工复训 | H22: 0 | I22: 0
A23: 特种作业复训合计 | B23: =SUM(B10:B22) -> 0 | C23: 0 | D23: =C23/B23 ->  | E23: 6792 | F23: 6037 | G23: 88.9% | H23: =SUM(H10:H22) -> 6792 | I23: =SUM(I10:I22) -> 6037 | J23: 88.9%
A24: 特种作业人员合计 | B24: =B9+B23 -> 0 | C24: 0 | D24: =C24/B24 ->  | E24: 11409 | F24: 9447 | G24: 82.8% | H24: =H9+H23 -> 11409 | I24: =I9+I23 -> 9447 | J24: 82.8%
A25: 烟花爆竹经营负责人初训 | E25: ='6月'!E25+'5月'!E25+'4月'!E25+'3月'!E25+'2月'!E25+'1月'!E25 -> 35 | F25: ='6月'!F25+'5月'!F25+'4月'!F25+'3月'!F25+'2月'!F25+'1月'!F25 -> 25 | G25: 71.4% | H25: =B25+E25 -> 35 | I25: =C25+F25 -> 25 | J25: 71.4%
A26: 危化生产负责人初训 | E26: ='6月'!E26+'5月'!E26+'4月'!E26+'3月'!E26+'2月'!E26+'1月'!E26 -> 14 | F26: ='6月'!F26+'5月'!F26+'4月'!F26+'3月'!F26+'2月'!F26+'1月'!F26 -> 13 | G26: 92.9% | H26: 14 | I26: 13 | J26: 92.9%
A27: 危化经营负责人初训 | E27: ='6月'!E27+'5月'!E27+'4月'!E27+'3月'!E27+'2月'!E27+'1月'!E27 -> 121 | F27: ='6月'!F27+'5月'!F27+'4月'!F27+'3月'!F27+'2月'!F27+'1月'!F27 -> 96 | G27: 79.3% | H27: 121 | I27: 96 | J27: 79.3%
A28: 非煤矿山负责人初训 | E28: ='6月'!E28+'5月'!E28+'4月'!E28+'3月'!E28+'2月'!E28+'1月'!E28 -> 6 | F28: ='6月'!F28+'5月'!F28+'4月'!F28+'3月'!F28+'2月'!F28+'1月'!F28 -> 6 | G28: 100.0% | H28: 6 | I28: 6 | J28: 100.0%
A29: 金属冶炼负责人初训 | E29: ='6月'!E29+'5月'!E29+'4月'!E29+'3月'!E29+'2月'!E29+'1月'!E29 -> 4 | F29: ='6月'!F29+'5月'!F29+'4月'!F29+'3月'!F29+'2月'!F29+'1月'!F29 -> 3 | G29: 75.0% | H29: 4 | I29: 3 | J29: 75.0%
A30: 高危行业负责人初训合计 | B30: =SUM(B25:B29) -> 0 | C30: 0 | D30: =C30/B30 ->  | E30: 180 | F30: 143 | G30: 79.4% | H30: =SUM(H25:H29) -> 180 | I30: =SUM(I25:I29) -> 143 | J30: 79.4%
A31: 烟花爆竹经营负责人复训 | E31: ='6月'!E31+'5月'!E31+'4月'!E31+'3月'!E31+'2月'!E31+'1月'!E31 -> 25 | F31: ='6月'!F31+'5月'!F31+'4月'!F31+'3月'!F31+'2月'!F31+'1月'!F31 -> 17 | G31: 68.0% | H31: =B31+E31 -> 25 | I31: =C31+F31 -> 17 | J31: 68.0%
A32: 危化生产负责人复训 | E32: ='6月'!E32+'5月'!E32+'4月'!E32+'3月'!E32+'2月'!E32+'1月'!E32 -> 5 | F32: ='6月'!F32+'5月'!F32+'4月'!F32+'3月'!F32+'2月'!F32+'1月'!F32 -> 5 | G32: 100.0% | H32: 5 | I32: 5 | J32: 100.0%
A33: 危化经营负责人复训 | E33: ='6月'!E33+'5月'!E33+'4月'!E33+'3月'!E33+'2月'!E33+'1月'!E33 -> 43 | F33: ='6月'!F33+'5月'!F33+'4月'!F33+'3月'!F33+'2月'!F33+'1月'!F33 -> 32 | G33: 74.4% | H33: 43 | I33: 32 | J33: 74.4%
A34: 非煤矿山负责人复训 | E34: ='6月'!E34+'5月'!E34+'4月'!E34+'3月'!E34+'2月'!E34+'1月'!E34 -> 6 | F34: ='6月'!F34+'5月'!F34+'4月'!F34+'3月'!F34+'2月'!F34+'1月'!F34 -> 6 | G34: 100.0% | H34: 6 | I34: 6 | J34: 100.0%
A35: 金属冶炼负责人复训 | E35: ='6月'!E35+'5月'!E35+'4月'!E35+'3月'!E35+'2月'!E35+'1月'!E35 -> 4 | F35: ='6月'!F35+'5月'!F35+'4月'!F35+'3月'!F35+'2月'!F35+'1月'!F35 -> 2 | G35: 50.0% | H35: 4 | I35: 2 | J35: 50.0%
A36: 高危行业负责人复训合计 | B36: =SUM(B31:B35) -> 0 | C36: 0 | D36: =C36/B36 ->  | E36: 83 | F36: 62 | G36: 74.7% | H36: =SUM(H31:H35) -> 83 | I36: =SUM(I31:I35) -> 62 | J36: 74.7%
A37: 高危行业主要负责人合计 | B37: =B30+B36 -> 0 | C37: 0 | D37: =C37/B37 ->  | E37: 263 | F37: 205 | G37: 77.9% | H37: =H30+H36 -> 263 | I37: =I30+I36 -> 205 | J37: 77.9%
A38: 烟花爆竹经营安管初训 | E38: ='6月'!E38+'5月'!E38+'4月'!E38+'3月'!E38+'2月'!E38+'1月'!E38 -> 33 | F38: ='6月'!F38+'5月'!F38+'4月'!F38+'3月'!F38+'2月'!F38+'1月'!F38 -> 22 | G38: 66.7% | H38: =B38+E38 -> 33 | I38: =C38+F38 -> 22 | J38: 66.7%
A39: 危化生产安管初训 | E39: ='6月'!E39+'5月'!E39+'4月'!E39+'3月'!E39+'2月'!E39+'1月'!E39 -> 49 | F39: ='6月'!F39+'5月'!F39+'4月'!F39+'3月'!F39+'2月'!F39+'1月'!F39 -> 39 | G39: 79.6% | H39: 49 | I39: 39 | J39: 79.6%
A40: 危化经营安管初训 | E40: ='6月'!E40+'5月'!E40+'4月'!E40+'3月'!E40+'2月'!E40+'1月'!E40 -> 235 | F40: ='6月'!F40+'5月'!F40+'4月'!F40+'3月'!F40+'2月'!F40+'1月'!F40 -> 151 | G40: 64.3% | H40: 235 | I40: 151 | J40: 64.3%
A41: 非煤矿山安管初训 | E41: ='6月'!E41+'5月'!E41+'4月'!E41+'3月'!E41+'2月'!E41+'1月'!E41 -> 23 | F41: ='6月'!F41+'5月'!F41+'4月'!F41+'3月'!F41+'2月'!F41+'1月'!F41 -> 22 | G41: 95.7% | H41: 23 | I41: 22 | J41: 95.7%
A42: 金属冶炼安管初训 | E42: ='6月'!E42+'5月'!E42+'4月'!E42+'3月'!E42+'2月'!E42+'1月'!E42 -> 9 | F42: ='6月'!F42+'5月'!F42+'4月'!F42+'3月'!F42+'2月'!F42+'1月'!F42 -> 4 | G42: 44.4% | H42: 9 | I42: 4 | J42: 44.4%
A43: 高危行业安管初训合计 | B43: =SUM(B38:B42) -> 0 | C43: 0 | D43: =C43/B43 ->  | E43: 349 | F43: 238 | G43: 68.2% | H43: =SUM(H38:H42) -> 349 | I43: =SUM(I38:I42) -> 238 | J43: 68.2%
A44: 烟花爆竹经营安管复训 | E44: ='6月'!E44+'5月'!E44+'4月'!E44+'3月'!E44+'2月'!E44+'1月'!E44 -> 24 | F44: ='6月'!F44+'5月'!F44+'4月'!F44+'3月'!F44+'2月'!F44+'1月'!F44 -> 22 | G44: 91.7% | H44: =B44+E44 -> 24 | I44: =C44+F44 -> 22 | J44: 91.7%
A45: 危化生产安管复训 | E45: ='6月'!E45+'5月'!E45+'4月'!E45+'3月'!E45+'2月'!E45+'1月'!E45 -> 22 | F45: ='6月'!F45+'5月'!F45+'4月'!F45+'3月'!F45+'2月'!F45+'1月'!F45 -> 16 | G45: 72.7% | H45: 22 | I45: 16 | J45: 72.7%
A46: 危化经营安管复训 | E46: ='6月'!E46+'5月'!E46+'4月'!E46+'3月'!E46+'2月'!E46+'1月'!E46 -> 93 | F46: ='6月'!F46+'5月'!F46+'4月'!F46+'3月'!F46+'2月'!F46+'1月'!F46 -> 69 | G46: 74.2% | H46: 93 | I46: 69 | J46: 74.2%
A47: 非煤矿山安管复训 | E47: ='6月'!E47+'5月'!E47+'4月'!E47+'3月'!E47+'2月'!E47+'1月'!E47 -> 9 | F47: ='6月'!F47+'5月'!F47+'4月'!F47+'3月'!F47+'2月'!F47+'1月'!F47 -> 9 | G47: 100.0% | H47: 9 | I47: 9 | J47: 100.0%
A48: 金属冶炼安管复训 | E48: ='6月'!E48+'5月'!E48+'4月'!E48+'3月'!E48+'2月'!E48+'1月'!E48 -> 8 | F48: ='6月'!F48+'5月'!F48+'4月'!F48+'3月'!F48+'2月'!F48+'1月'!F48 -> 4 | G48: 50.0% | H48: 8 | I48: 4 | J48: 50.0%
A49: 高危行业安管复训合计 | B49: =SUM(B44:B48) -> 0 | C49: 0 | D49: =C49/B49 ->  | E49: 156 | F49: 120 | G49: 76.9% | H49: =SUM(H44:H48) -> 156 | I49: =SUM(I44:I48) -> 120 | J49: 76.9%
A50: 高危行业安管人员合计 | B50: =B43+B49 -> 0 | C50: 0 | E50: 505 | F50: 358 | G50: 70.9% | H50: =H43+H49 -> 505 | I50: =I43+I49 -> 358 | J50: 70.9%
A51: 高危行业负责人安管合计 | B51: =B37+B50 -> 0 | C51: 0 | E51: 768 | F51: 563 | G51: 73.3% | H51: =H37+H50 -> 768 | I51: =I37+I50 -> 563 | J51: 73.3%
A52: 全工种合计 | B52: =B24+B51 -> 0 | C52: 0 | E52: 12177 | F52: 10010 | G52: 82.2% | H52: =E52+B52 -> 12177 | I52: =F52+C52 -> 10010 | J52: 82.2%
A53: 备注： 1.培训机构名称以全国安全生产培训考试信息管理系统记录为准，排序不分先后； 2.实考人数=报考总人数-正考补考均缺考人数-考试违规被取消成绩人数； 3.仅统计已完成考试者，还有补考机会者不统计。
